fUSD/lending_fUSD_20260614
["ID","MTS","AMOUNT","RATE_DAILY","PERIOD"]
[425014666,1781420836000,-146.146382,0.00017999,2]
[425014664,1781420836000,-170.75627167,0.00017999,2]
[425014662,1781420836000,-150.0,0.0001552,2]
[425014663,1781420836000,-165.0,0.00016,2]
[425014676,1781421032000,-340.99672813,0.00017999,2]
[425014675,1781421032000,-421.72388725,0.000179,2]
[425014678,1781421032000,-564.49998,0.00018,5]
[425014677,1781421032000,-918.50312882,0.00018,5]
[425014681,1781421032000,-2000.0,0.00018,2]
[425014683,1781421032000,-150.0,0.00019999,2]
[425014679,1781421032000,-2871.21161839,0.00018,5]
[425014685,1781421032000,-26842.42153007,0.0002,2]
[425014682,1781421032000,-1248.85829718,0.000199,2]
[425014684,1781421032000,-13647.16136511,0.0002,2]
[425014687,1781421032000,-5268.94268919,0.0002,2]
[425014680,1781421032000,-6242.33769895,0.00018,5]
[425014710,1781421038000,-846.29001504,0.0002,2]
[425014711,1781421038000,-500.0,0.0002,2]
[425014709,1781421038000,-201.95621089,0.000199,3]
[425014720,1781421040000,-574.744,0.0002,2]
[425014719,1781421040000,-393.19740061,0.0002,2]
[425014722,1781421041000,-999.75545535,0.0002,2]
[425014721,1781421041000,-271.552087,0.0002,2]
[425014727,1781421043000,-2121.80929683,0.0002,2]
[425014726,1781421043000,-14001.42212702,0.0002,2]
[425014738,1781421046000,-1057.83701526,0.0002,2]
[425014736,1781421046000,-431.69864103,0.0002,2]
[425014737,1781421046000,-2503.20420611,0.0002,2]
[425014735,1781421046000,-63937.58975075,0.0002,2]
[425014734,1781421046000,-20831.47948531,0.0002,2]
[425014733,1781421046000,-2597.41224029,0.0002,2]
[425014841,1781422035000,-228.53848741,0.00019485,2]
[425014840,1781422035000,-284.0,0.000194,2]
[425014843,1781422051000,-285.58145773,0.000196,2]
[425014842,1781422051000,-60.20424265,0.00019485,2]
[425014845,1781422053000,-872.49748053,0.000199,2]
[425014844,1781422053000,-325.91854227,0.000196,2]
[425014876,1781422231000,-500.0,0.00019999,2]
[425014872,1781422231000,-500.0,0.00019999,2]
[425014871,1781422231000,-500.0,0.00019999,2]
[425014867,1781422231000,-500.0,0.00019999,2]
[425014868,1781422231000,-500.0,0.00019999,2]
[425014869,1781422231000,-441.39947416,0.00019999,2]
[425014865,1781422231000,-500.0,0.00019999,2]
[425014866,1781422231000,-574.93151324,0.00019999,2]
[425014870,1781422231000,-58.60052584,0.00019999,2]
[425014864,1781422231000,-500.0,0.00019999,2]
[425014858,1781422231000,-832.57219812,0.000199,2]
[425014861,1781422231000,-500.0,0.00019999,2]
[425014860,1781422231000,-500.0,0.00019999,2]
[425014859,1781422231000,-500.0,0.0001998,2]
[425014863,1781422231000,-500.0,0.00019999,2]
[425014857,1781422231000,-177.7026854,0.000199,2]
[425014875,1781422231000,-500.0,0.00019999,2]
[425014856,1781422231000,-660.66550173,0.000199,2]
[425014855,1781422231000,-315.78335004,0.000199,2]
[425014852,1781422231000,-150.0,0.000199,2]
[425014854,1781422231000,-507.66934143,0.000199,2]
[425014853,1781422231000,-416.27831088,0.000199,2]
[425014862,1781422231000,-500.0,0.00019999,2]
[425014874,1781422231000,-500.0,0.00019999,2]
[425014881,1781422231000,-500.0,0.00019999,2]
[425014877,1781422231000,-307.03631906,0.00019999,2]
[425014906,1781422231000,-1889.84320055,0.00019999,2]
[425014903,1781422231000,-500.0,0.00019999,2]
[425014904,1781422231000,-512.76589096,0.00019999,2]
[425014901,1781422231000,-455.57776048,0.00019999,2]
[425014902,1781422231000,-618.35430847,0.00019999,2]
[425014897,1781422231000,-500.0,0.00019999,2]
[425014894,1781422231000,-500.0,0.00019999,2]
[425014892,1781422231000,-150.0,0.00019999,2]
[425014899,1781422231000,-44.42223952,0.00019999,2]
[425014895,1781422231000,-500.0,0.00019999,2]
[425014873,1781422231000,-500.0,0.00019999,2]
[425014891,1781422231000,-171.02,0.00019999,2]
[425014889,1781422231000,-500.0,0.00019999,2]
[425014887,1781422231000,-500.0,0.00019999,2]
[425014885,1781422231000,-500.0,0.00019999,2]
[425014886,1781422231000,-500.0,0.00019999,2]
[425014884,1781422231000,-500.0,0.00019999,2]
[425014888,1781422231000,-500.0,0.00019999,2]
[425014883,1781422231000,-500.0,0.00019999,2]
[425014882,1781422231000,-500.0,0.00019999,2]
[425014879,1781422231000,-500.0,0.00019999,2]
[425014880,1781422231000,-500.0,0.00019999,2]
[425014890,1781422231000,-500.0,0.00019999,2]
[425014878,1781422231000,-192.96368094,0.00019999,2]
[425014927,1781422238000,-369.43747033,0.0002,2]
[425014926,1781422238000,-110.15679945,0.00019999,2]
[425014955,1781422242000,-260.35224149,0.0002,2]
[425014954,1781422242000,-545.98827082,0.0002,2]
[425014956,1781422245000,-2593.34554084,0.0002,2]
[425014964,1781423141000,-250.0,0.00019404,2]
[425014963,1781423141000,-151.0,0.0001764,2]
[425014965,1781423141000,-184.0626563,0.00019899,2]
[425014968,1781423236000,-362.13585354,0.00019899,2]
[425014967,1781423236000,-500.0,0.00019899,2]
[425014969,1781423236000,-117.98044711,0.00019899,2]
[425014966,1781423236000,-115.9373437,0.00019899,2]
[425014971,1781423243000,-340.48329884,0.000199,2]
[425014970,1781423243000,-147.25856601,0.00019899,2]
[425014975,1781423431000,-218.0,0.00019899,2]
[425014978,1781423431000,-490.88588251,0.000199,2]
[425014976,1781423431000,-356.80998078,0.000199,2]
[425014977,1781423431000,-456.90240726,0.000199,2]
[425014979,1781423431000,-103.71306902,0.000199,2]
[425014984,1781423431000,-1564.33671004,0.00019986,2]
[425014983,1781423431000,-150.0,0.00019985,2]
[425014981,1781423431000,-177.7026854,0.000199,2]
[425014982,1781423431000,-250.516969,0.00019966,2]
[425014985,1781423431000,-4235.79494247,0.00019986,2]
[425014980,1781423431000,-157.15908565,0.000199,2]
[425014987,1781423438000,-550.44541529,0.00019986,2]
[425014988,1781423438000,-139.41572411,0.00019986,2]
[425015017,1781423446000,-5866.66,0.00019986,2]
[425015015,1781423446000,-2598.61156351,0.00019986,2]
[425015016,1781423446000,-1953.09,0.00019986,2]
[425015014,1781423446000,-6130.66896063,0.00019986,2]
[425015012,1781423446000,-55748.89298886,0.00019986,2]
[425015011,1781423446000,-555.04813208,0.000199,2]
[425015013,1781423446000,-1709.3981,0.00019986,2]
[425015025,1781423736000,-384.366,0.00019404,2]
[425015024,1781423736000,-151.0,0.0001764,2]
[425015027,1781423736000,-370.03208806,0.000199,2]
[425015028,1781423736000,-8683.38974537,0.00019986,2]
[425015026,1781423736000,-411.21216657,0.000199,2]
[425015029,1781423741000,-10000.0,0.00019986,2]
[425015030,1781423742000,-5723.48646052,0.00019986,2]
[425015031,1781423742000,-4276.51353948,0.00019986,2]
[425015032,1781423743000,-10000.0,0.00019986,2]
[425015037,1781423744000,-500.0,0.00019999,2]
[425015034,1781423744000,-202.55302513,0.00019986,2]
[425015035,1781423744000,-156.69946682,0.00019999,2]
[425015038,1781423744000,-500.0,0.00019999,2]
[425015036,1781423744000,-500.0,0.00019999,2]
[425015033,1781423744000,-2478.65251392,0.00019986,2]
[425015043,1781423744000,-1609.52852497,0.0002,2]
[425015041,1781423744000,-1426.23,0.0002,7]
[425015042,1781423744000,-2000.0,0.0002,2]
[425015040,1781423744000,-382.03711996,0.00019999,2]
[425015044,1781423744000,-10000.0,0.0002,2]
[425015039,1781423744000,-244.2993492,0.00019999,2]
[425015046,1781423745000,-9842.84091436,0.0002,2]
[425015045,1781423745000,-157.15908564,0.000199,2]
[425015047,1781423746000,-10000.0,0.0002,2]
[425015048,1781423747000,-10000.0,0.0002,2]
[425015049,1781423748000,-10000.0,0.0002,2]
[425015050,1781423753000,-3339.0,0.0002,2]
[425015051,1781423802000,122170.75484633,0.00015,2]
[425015052,1781423895000,2500.41,0.000136,2]
[425015053,1781423906000,1512.27,0.000136,2]
[425015055,1781423979000,250.0,0.00014,2]
[425015062,1781424131000,-238.0,0.000152,2]
[425015064,1781424186000,-300.0,0.00016,2]
[425015069,1781424240000,-500.0,0.00017568,2]
[425015070,1781424256000,-846.29001504,0.00017568,2]
[425015072,1781424317000,153.44,0.000136,2]
[425015074,1781424436000,-150.0,0.00017041,2]
[425015075,1781424436000,-153.70998496,0.00017568,2]
[425015076,1781424436000,-163.68,0.0001764,2]
[425015077,1781424436000,-660.93600227,0.00018116,2]
[425015079,1781424628000,1435.39,0.000136,2]
[425015093,1781424631000,-305.57794744,0.00018116,2]
[425015100,1781424631000,-168.0,0.00019,2]
[425015095,1781424631000,-552.08505625,0.00018116,2]
[425015108,1781424631000,-194.04,0.00019222,2]
[425015107,1781424631000,-374.0178199,0.000192,2]
[425015103,1781424631000,-158.0,0.00019,2]
[425015106,1781424631000,-343.4059983,0.000192,2]
[425015109,1781424631000,-192.94570188,0.00019263,2]
[425015104,1781424631000,-153.0,0.00019,2]
[425015101,1781424631000,-153.0,0.00019,2]
[425015105,1781424631000,-166.66,0.00019049,2]
[425015098,1781424631000,-154.0,0.00019,2]
[425015110,1781424632000,-590.85429812,0.00019263,2]
[425015113,1781424632000,-93.3722223,0.00019851,2]
[425015112,1781424632000,-73.2877777,0.00019851,2]
[425015114,1781424632000,-300.0,0.00019899,2]
[425015115,1781424632000,-6.6277777,0.000199,2]
[425015118,1781424632000,-177.7026854,0.000199,2]
[425015111,1781424632000,-166.66,0.0001945,2]
[425015117,1781424632000,-370.09094985,0.000199,2]
[425015120,1781424632000,-150.0,0.00019941,2]
[425015119,1781424632000,-643.87071947,0.00019935,2]
[425015121,1781424632000,-31578.48482785,0.00019942,2]
[425015122,1781424632000,-19498.23384312,0.00019942,2]
[425015123,1781424632000,-1254.41808677,0.00019942,2]
[425015116,1781424632000,-409.38177203,0.000199,2]
[425015144,1781424638000,-846.29001504,0.00019942,2]
[425015145,1781424638000,-500.0,0.00019942,2]
[425015150,1781424639000,2518.28,0.000136,2]
[425015163,1781424640000,-322.51812781,0.00019999,2]
[425015164,1781424640000,-500.0,0.00019999,2]
[425015167,1781424640000,-408.73,0.00019999,2]
[425015160,1781424640000,-178.8529378,0.00019984,2]
[425015161,1781424640000,-3022.8564051,0.00019986,2]
[425015159,1781424640000,-3663.3497473,0.00019984,2]
[425015156,1781424640000,-3592.3572879,0.00019942,2]
[425015158,1781424640000,-801.5632569,0.00019976,2]
[425015157,1781424640000,-16417.9945236,0.00019976,2]
[425015154,1781424640000,-1647.79538863,0.000199,2]
[425015155,1781424640000,-19902.8253962,0.00019942,2]
[425015153,1781424640000,-0.09444462,0.00019942,2]
[425015166,1781424640000,-295.55985229,0.00019999,2]
[425015162,1781424640000,-260.05437342,0.0001999,2]
[425015165,1781424640000,-500.0,0.00019999,2]
[425015170,1781424640000,-500.0,0.00019999,2]
[425015169,1781424640000,-500.0,0.00019999,2]
[425015182,1781424640000,-489.2,0.00019999,2]
[425015184,1781424640000,-500.0,0.00019999,2]
[425015168,1781424640000,-500.0,0.00019999,2]
[425015181,1781424640000,-500.0,0.00019999,2]
[425015180,1781424640000,-189.44,0.00019999,2]
[425015177,1781424640000,-500.0,0.00019999,2]
[425015183,1781424640000,-500.0,0.00019999,2]
[425015178,1781424640000,-500.0,0.00019999,2]
[425015176,1781424640000,-500.0,0.00019999,2]
[425015173,1781424640000,-500.0,0.00019999,2]
[425015171,1781424640000,-500.0,0.00019999,2]
[425015179,1781424640000,-500.0,0.00019999,2]
[425015174,1781424640000,-500.0,0.00019999,2]
[425015175,1781424640000,-500.0,0.00019999,2]
[425015172,1781424640000,-500.0,0.00019999,2]
[425015188,1781424641000,-500.0,0.00019999,2]
[425015193,1781424641000,-150.0,0.00019999,2]
[425015185,1781424641000,-500.0,0.00019999,2]
[425015186,1781424641000,-500.0,0.00019999,2]
[425015189,1781424641000,-500.0,0.00019999,2]
[425015191,1781424641000,-500.0,0.00019999,2]
[425015190,1781424641000,-500.0,0.00019999,2]
[425015192,1781424641000,-495.76,0.00019999,2]
[425015194,1781424641000,-500.0,0.00019999,2]
[425015187,1781424641000,-500.0,0.00019999,2]
[425015195,1781424641000,-500.0,0.00019999,2]
[425015197,1781424641000,-500.0,0.00019999,2]
[425015198,1781424641000,-500.0,0.00019999,2]
[425015196,1781424641000,-500.0,0.00019999,2]
[425015199,1781424641000,-500.0,0.00019999,2]
[425015201,1781424641000,-410.41,0.00019999,2]
[425015204,1781424641000,-2000.0,0.0002,2]
[425015205,1781424641000,-29792.96408781,0.0002,2]
[425015203,1781424641000,-360.0,0.0002,5]
[425015202,1781424641000,-398.23828919,0.00019999,2]
[425015206,1781424641000,-1830.02600197,0.0002,2]
[425015200,1781424641000,-500.0,0.00019999,2]
[425015207,1781424642000,-1952.45059149,0.0002,2]
[425015213,1781424643000,-693.99950253,0.0002,2]
[425015212,1781424643000,-2982.45583009,0.0002,2]
[425015214,1781424646000,-448.65876905,0.00018,2]
[425015216,1781424646000,-229.35976905,0.0002,2]
[425015217,1781424646000,-17193.58864179,0.0002,2]
[425015218,1781424646000,-2598.75593688,0.0002,2]
[425015215,1781424646000,-63.34123095,0.00018,2]
[425015220,1781424650000,1979.77,0.000136,2]
[425015221,1781424661000,1763.3,0.000136,2]
[425015222,1781424885000,-652.3,0.00016438,2]
[425015223,1781425188000,-401.46963033,0.0001744,2]
[425015224,1781425337000,257.87,0.0001491,2]
[425015233,1781425436000,-166.66,0.00018216,2]
[425015232,1781425436000,-290.51188817,0.00018116,2]
[425015231,1781425436000,-512.0,0.00018,2]
[425015229,1781425436000,-150.0,0.00017748,2]
[425015226,1781425436000,-150.0,0.00017277,2]
[425015228,1781425436000,-150.04,0.00017606,2]
[425015227,1781425436000,-201.88583069,0.0001754,2]
[425015225,1781425436000,-150.0,0.00017014,2]
[425015230,1781425436000,-416.17,0.0001797,2]
[425015237,1781425436000,-238.54455474,0.0001894,2]
[425015234,1781425436000,-166.66,0.000186,2]
[425015236,1781425436000,-561.60279856,0.0001894,2]
[425015239,1781425436000,-500.0,0.0001894,2]
[425015241,1781425436000,-500.0,0.0001894,2]
[425015238,1781425436000,-500.0,0.0001894,2]
[425015240,1781425436000,-500.0,0.0001894,2]
[425015243,1781425436000,-150.0,0.00018941,2]
[425015242,1781425436000,-574.16071612,0.0001894,2]
[425015244,1781425436000,-456.45521995,0.00018941,2]
[425015245,1781425436000,-271.28418567,0.00018941,2]
[425015247,1781425436000,-2727.10306805,0.00018942,2]
[425015246,1781425436000,-225.65506073,0.00018941,2]
[425015235,1781425436000,-441.26667732,0.0001894,2]
[425015249,1781425438000,-166.66,0.00018983,2]
[425015248,1781425438000,-4252.50693195,0.00018942,2]
[425015250,1781425438000,-151.0,0.00019,2]
[425015253,1781425438000,-177.0,0.00019,2]
[425015251,1781425438000,-154.0,0.00019,2]
[425015255,1781425438000,-478.34168246,0.000192,2]
[425015256,1781425438000,-520.89301646,0.000192,2]
[425015254,1781425438000,-290.51188815,0.00019008,2]
[425015258,1781425438000,-3473.42648098,0.00019376,2]
[425015257,1781425438000,-166.66,0.00019367,2]
[425015252,1781425438000,-169.0,0.00019,2]
[425015259,1781425439000,-305.69351902,0.00019376,2]
[425015260,1781425439000,-178.4,0.00019658,2]
[425015262,1781425439000,-166.66,0.0001975,2]
[425015261,1781425439000,-3633.55071481,0.000197,2]
[425015264,1781425439000,-742.23296721,0.000199,2]
[425015263,1781425439000,-218.56692225,0.00019766,2]
[425015266,1781425439000,-290.51188815,0.000199,2]
[425015267,1781425439000,-2000.0,0.00019999,2]
[425015268,1781425439000,-500.0,0.00019999,2]
[425015269,1781425439000,-500.0,0.00019999,2]
[425015270,1781425439000,-500.0,0.00019999,2]
[425015271,1781425439000,-500.0,0.00019999,2]
[425015272,1781425439000,-197.82996046,0.00019999,2]
[425015265,1781425439000,-266.5540281,0.000199,2]
[425015273,1781425440000,-302.17003954,0.00019999,2]
[425015274,1781425440000,-500.0,0.00019999,2]
[425015276,1781425440000,-500.0,0.00019999,2]
[425015275,1781425440000,-500.0,0.00019999,2]
[425015278,1781425440000,-500.0,0.00019999,2]
[425015280,1781425440000,-500.0,0.00019999,2]
[425015279,1781425440000,-500.0,0.00019999,2]
[425015277,1781425440000,-500.0,0.00019999,2]
[425015282,1781425441000,-151.06,0.00019999,2]
[425015281,1781425441000,-500.0,0.00019999,2]
[425015283,1781425441000,-500.0,0.00019999,2]
[425015284,1781425441000,-500.0,0.00019999,2]
[425015287,1781425441000,-500.0,0.00019999,2]
[425015285,1781425441000,-500.0,0.00019999,2]
[425015292,1781425441000,-500.0,0.00019999,2]
[425015288,1781425441000,-500.0,0.00019999,2]
[425015294,1781425441000,-299.94996046,0.00019999,2]
[425015293,1781425441000,-500.0,0.00019999,2]
[425015286,1781425441000,-500.0,0.00019999,2]
[425015290,1781425441000,-246.82,0.00019999,2]
[425015289,1781425441000,-500.0,0.00019999,2]
[425015291,1781425441000,-500.0,0.00019999,2]
[425015295,1781425534000,396.4,0.000136,2]
[425015300,1781425584000,-668.00967048,0.000199,2]
[425015299,1781425584000,-606.53725179,0.000199,2]
[425015298,1781425584000,-2677.81405887,0.000199,2]
[425015297,1781425584000,-151.0,0.0001764,2]
[425015296,1781425584000,-151.0,0.0001764,2]
[425015302,1781425585000,-286.01785735,0.00019998,2]
[425015303,1781425585000,-200.05003954,0.00019999,2]
[425015304,1781425585000,-500.0,0.00019999,2]
[425015306,1781425585000,-500.0,0.00019999,2]
[425015308,1781425585000,-500.0,0.00019999,2]
[425015301,1781425585000,-201.95621089,0.000199,3]
[425015307,1781425585000,-500.0,0.00019999,2]
[425015309,1781425585000,-642.08,0.00019999,2]
[425015310,1781425585000,-500.0,0.00019999,2]
[425015312,1781425585000,-500.0,0.00019999,2]
[425015311,1781425585000,-500.0,0.00019999,2]
[425015313,1781425585000,-415.53491108,0.00019999,2]
[425015305,1781425585000,-500.0,0.00019999,2]
[425015315,1781425634000,-345.78798255,0.000199,2]
[425015317,1781425646000,-446.47376109,0.000199,2]
[425015316,1781425646000,-744.94063494,0.000199,2]
[425015319,1781425654000,-108.54986695,0.00019999,2]
[425015318,1781425654000,-401.51644071,0.000199,2]
[425015320,1781425783000,250.0,0.00014,2]
[425015335,1781425832000,-570.4684383,0.00019999,2]
[425015330,1781425832000,-150.0,0.00019898,2]
[425015331,1781425832000,-356.57961402,0.000199,2]
[425015332,1781425832000,-530.72009536,0.000199,2]
[425015328,1781425832000,-152.0,0.00019897,2]
[425015325,1781425832000,-106.04528552,0.00018,2]
[425015327,1781425832000,-150.5936033,0.00019897,2]
[425015326,1781425832000,-350.0,0.00018,2]
[425015324,1781425832000,-406.95471448,0.00018,2]
[425015323,1781425832000,-300.0,0.00016,2]
[425015338,1781425832000,-500.0,0.00019999,2]
[425015329,1781425832000,-151.0,0.00019897,2]
[425015337,1781425832000,-500.0,0.00019999,2]
[425015350,1781425832000,-23267.51712439,0.0002,2]
[425015336,1781425832000,-156.69946682,0.00019999,2]
[425015352,1781425832000,-26891.28853592,0.0002,2]
[425015348,1781425832000,-622.93694429,0.0002,2]
[425015346,1781425832000,-302.0,0.0002,5]
[425015345,1781425832000,-346.0,0.0002,5]
[425015333,1781425832000,-151.0,0.00019934,2]
[425015344,1781425832000,-140.21501351,0.00019999,2]
[425015347,1781425832000,-1377.06305571,0.0002,2]
[425015343,1781425832000,-49.68391646,0.00019999,2]
[425015341,1781425832000,-23.41481686,0.00019999,2]
[425015340,1781425832000,-134.54372566,0.00019999,2]
[425015339,1781425832000,-436.24508892,0.00019999,2]
[425015334,1781425832000,-391.45013305,0.00019999,2]
[425015342,1781425832000,-319.51865396,0.00019999,2]
[425015380,1781425838000,-751.04847488,0.0002,2]
[425015378,1781425838000,-931.85130686,0.0002,2]
[425015379,1781425838000,-7500.13259037,0.0002,2]
[425015395,1781425840000,-365.8688916,0.0002,2]
[425015394,1781425840000,-44935.29744818,0.0002,2]
[425015396,1781425840000,-387.52387339,0.0002,2]
[425015397,1781425840000,-39896.73967231,0.0002,2]
[425015398,1781425840000,-3895.61839148,0.0002,2]
[425015404,1781425842000,-9077.54866152,0.0002,2]
[425015403,1781425842000,-8943.78386462,0.0002,2]
[425015402,1781425842000,-8947.21879473,0.0002,2]
[425015401,1781425842000,-8856.176646,0.0002,2]
[425015405,1781425843000,-683.1016423,0.0002,2]
[425015407,1781425843000,-546.0,0.0002,2]
[425015406,1781425843000,-471.79970756,0.0002,2]
[425015416,1781425846000,-1927.96674372,0.0002,2]
[425015415,1781425846000,-31083.22044092,0.0002,2]
[425015423,1781426737000,-49.03190271,0.00018521,2]
[425015422,1781426737000,-151.0,0.00018512,2]
[425015421,1781426737000,-218.37527295,0.0001851,2]
[425015420,1781426737000,-166.66,0.00018509,2]
[425015424,1781426846000,-250.96809729,0.00018521,2]
[425015426,1781426846000,-88.00621184,0.00018521,2]
[425015425,1781426846000,-151.0,0.00018521,2]
[425015427,1781426851000,-63.99378816,0.00018521,2]
[425015428,1781426851000,-152.0,0.00018521,2]
[425015429,1781426851000,-150.0,0.00018521,2]
[425015431,1781426851000,-153.0,0.00018522,2]
[425015433,1781426851000,-151.0,0.00018522,2]
[425015432,1781426851000,-151.0,0.00018522,2]
[425015434,1781426851000,-132.60483787,0.00018522,2]
[425015430,1781426851000,-152.0,0.00018522,2]
[425015456,1781427032000,-319.94617449,0.00018828,2]
[425015458,1781427032000,-265.23901312,0.00018828,2]
[425015460,1781427032000,-15.71590655,0.00018828,2]
[425015459,1781427032000,-484.28409345,0.00018828,2]
[425015464,1781427032000,-500.0,0.00018828,2]
[425015462,1781427032000,-14.8043338,0.00018828,2]
[425015463,1781427032000,-500.0,0.00018828,2]
[425015470,1781427032000,-500.0,0.00018828,2]
[425015465,1781427032000,-329.27525258,0.00018828,2]
[425015466,1781427032000,-500.0,0.00018828,2]
[425015468,1781427032000,-500.0,0.00018828,2]
[425015471,1781427032000,-500.0,0.00018828,2]
[425015467,1781427032000,-500.0,0.00018828,2]
[425015469,1781427032000,-500.0,0.00018828,2]
[425015457,1781427032000,-500.0,0.00018828,2]
[425015461,1781427032000,-485.1956662,0.00018828,2]
[425015454,1781427032000,-151.0,0.00018522,2]
[425015441,1781427032000,-100.12537202,0.00018521,2]
[425015451,1781427032000,-152.0,0.00018522,2]
[425015439,1781427032000,-152.0,0.00018521,2]
[425015440,1781427032000,-50.87462798,0.00018521,2]
[425015438,1781427032000,-300.0,0.00018521,2]
[425015442,1781427032000,-18.39516213,0.00018522,2]
[425015443,1781427032000,-151.0,0.00018522,2]
[425015445,1781427032000,-152.0,0.00018522,2]
[425015455,1781427032000,-234.43807297,0.00018675,2]
[425015444,1781427032000,-151.0,0.00018522,2]
[425015448,1781427032000,-151.0,0.00018522,2]
[425015446,1781427032000,-150.0,0.00018522,2]
[425015450,1781427032000,-150.0,0.00018522,2]
[425015447,1781427032000,-150.0,0.00018522,2]
[425015453,1781427032000,-151.0,0.00018522,2]
[425015452,1781427032000,-151.0,0.00018522,2]
[425015449,1781427032000,-151.0,0.00018522,2]
[425015472,1781427032000,-500.0,0.00018828,2]
[425015539,1781427032000,-538.37729005,0.000199,2]
[425015475,1781427032000,-500.0,0.00018828,2]
[425015510,1781427032000,-151.86796248,0.00019377,2]
[425015512,1781427032000,-151.0,0.000196,2]
[425015508,1781427032000,-79.4823595,0.00019288,2]
[425015514,1781427032000,-152.0,0.000196,2]
[425015525,1781427032000,-159.6269321,0.0001964,2]
[425015532,1781427032000,-151.0,0.00019898,2]
[425015473,1781427032000,-500.0,0.00018828,2]
[425015529,1781427032000,-106.0530679,0.0001964,2]
[425015533,1781427032000,-151.0,0.00019899,2]
[425015534,1781427032000,-124.78176742,0.00019899,2]
[425015537,1781427032000,-152.0,0.00019899,2]
[425015535,1781427032000,-28.21823258,0.00019899,2]
[425015538,1781427032000,-266.330186,0.000199,2]
[425015536,1781427032000,-152.0,0.00019899,2]
[425015540,1781427032000,-2410.03265292,0.000199,2]
[425015505,1781427032000,-87.1776405,0.00019288,2]
[425015523,1781427032000,-151.0,0.000196,2]
[425015531,1781427032000,-166.66,0.00019678,2]
[425015521,1781427032000,-151.0,0.000196,2]
[425015518,1781427032000,-48.32680334,0.000196,2]
[425015474,1781427032000,-500.0,0.00018828,2]
[425015477,1781427032000,-500.0,0.00018828,2]
[425015480,1781427032000,-500.0,0.00018828,2]
[425015493,1781427032000,-166.66,0.00018899,2]
[425015491,1781427032000,-1500.0,0.00018829,2]
[425015496,1781427032000,-223.66305778,0.00018997,2]
[425015476,1781427032000,-500.0,0.00018828,2]
[425015486,1781427032000,-500.0,0.00018828,2]
[425015484,1781427032000,-281.33561498,0.00018828,2]
[425015488,1781427032000,-500.0,0.00018828,2]
[425015500,1781427032000,-666.6776405,0.00019138,2]
[425015499,1781427032000,-187.0,0.00019,2]
[425015503,1781427032000,-3088.5223595,0.00019138,2]
[425015516,1781427032000,-104.67319666,0.000196,2]
[425015482,1781427032000,-218.66438502,0.00018828,2]
[425015556,1781427033000,-500.0,0.00019999,2]
[425015554,1781427033000,-500.0,0.00019999,2]
[425015555,1781427033000,-500.0,0.00019999,2]
[425015552,1781427033000,-500.0,0.00019999,2]
[425015551,1781427033000,-29.2827329,0.00019999,2]
[425015548,1781427033000,-513.66,0.00019986,2]
[425015549,1781427033000,-500.0,0.00019999,2]
[425015541,1781427033000,-464.38008344,0.000199,2]
[425015547,1781427033000,-537.9430475,0.00019986,2]
[425015542,1781427033000,-565.3268012,0.000199,2]
[425015546,1781427033000,-150.0,0.00019985,2]
[425015544,1781427033000,-275.11829116,0.00019936,2]
[425015545,1781427033000,-299.97647889,0.00019976,2]
[425015543,1781427033000,-305.63966916,0.000199,2]
[425015557,1781427033000,-500.0,0.00019999,2]